Cogmind - Beta 14 @@@ ROGUE MODE // 2024.08.30 @ 17:53:40 Player: OctagonalPrism Result: Destroyed by as-51589 with Assembled Blade Performance ------------- Evolutions (0) 0 Regions Visited (4) 800 Robots Destroyed (22) 110 Value Destroyed (438) 438 Prototype IDs (26) 520 Alien Tech Used (0) 0 Bonus (370) 370 TOTAL SCORE: 2238 Bonus ------- Follower Combat Kills 70 Aligned with FarCom 300 Cogmind --------- Core Integrity 0/250 Matter 300/300 Energy 125/125 System Corruption 0% Temperature Cool (0) Movement Flying (40) Location -9/Mines Parts ------- > --- POWER (1) -------- Light Ion Engine > --- PROPULSION (2) --- Flight Unit > --- UTILITY (2) ------ 0b10 Alert Chip > --- WEAPON (2) ------- (None) > --- INVENTORY (5) ---- Medium Storage Unit Structural Scanner Improved Terrain Scanner Hacking Suite Light Assault Rifle Peak State ------------ > --- POWER ------------ Light Ion Engine > --- PROPULSION ------- Flight Unit Flight Unit > --- UTILITY ---------- 0b10 Alert Chip > --- WEAPON ----------- Light Assault Rifle Light Assault Rifle > --- INVENTORY -------- Medium Storage Unit Structural Scanner Improved Terrain Scanner Hacking Suite [Rating: 11] Favorites ----------- Power Ion Engine Engine Ion Engine Propulsion Light Treads Treads Light Treads Wheel Wheel Flight Unit Flight Unit Utility Improved Terrain Scanner Device Improved Terrain Scanner Storage Medium Storage Unit Processor 0b10 Alert Chip Weapon Light Assault Rifle Energy Gun Small Laser Ballistic Gun Light Assault Rifle Build | -11 -10 -10 -10 -9 ------- Run | Yrd Mat Min Exi Min Slots Evolved . | . . . . . Power . | . . . . . Propulsion . | . . . . . Utility . | . . . . . Weapon . | . . . . . Parts Attached 24 | 7 1 15 1 . Power 6 | 2 . 4 . . Engine 6 | 2 . 4 . . Core . | . . . . . Reactor . | . . . . . Propulsion 6 | 2 . 4 . . Treads 2 | 2 . . . . Leg . | . . . . . Wheel 2 | . . 2 . . Hover . | . . . . . Flight 2 | . . 2 . . Utility 4 | 1 . 2 1 . Device 1 | . . 1 . . Storage 2 | 1 . 1 . . Processor 1 | . . . 1 . Hackware . | . . . . . Protection . | . . . . . Artifact . | . . . . . Weapon 8 | 2 1 5 . . Energy Gun 2 | 1 . 1 . . Energy Cannon . | . . . . . Ballistic Gun 6 | 1 1 4 . . Ballistic Cannon . | . . . . . Launcher . | . . . . . Special Weapon . | . . . . . Impact Weapon . | . . . . . Slashing Weapon . | . . . . . Piercing Weapon . | . . . . . Special Melee Weapon . | . . . . . Unidentified Prototypes . | . . . . . Parts Lost 9 | . . 7 . 2 Power 1 | . . 1 . . Propulsion 5 | . . 4 . 1 Utility . | . . . . . Weapon 3 | . . 2 . 1 Highest Loss Streak 5 | . . 5 . 2 To Critical Strikes . | . . . . . Average Slot Usage (%) 79 | . 84 77 76 77 Engine 13 | . 14 13 14 14 Treads 19 | . 28 18 . . Flight 2 | . . . 28 24 Device 6 | . . 9 . . Storage 10 | . 14 10 . . Ballistic Gun 24 | . 27 22 28 24 Peak Build Rating 11 | 6 6 9 11 11 Average Rating 6 | 5 5 6 7 10 On Entrance 5 | . 6 6 5 11 Naked Turns . | . . . . . Heaviest Build 18 | 12 12 18 5 5 Greatest Support 40 | 40 40 40 8 8 Greatest Overweight (x) 1 | . . 1 . . Average Overweight (x) . | . . . . . Largest Inventory Capacity 10 | 8 8 10 5 5 Average Capacity 8 | 7 8 8 5 5 Most Carried 5 | 1 3 5 4 5 Average Carried 2 | . 1 2 4 4 Final Capacity 8 | 8 8 5 5 5 Final Carried 5 | 1 3 4 4 5 Class Distribution -------------------- 84% | Mutant 15% | Scavenger-Mutant Dominant Class ---------------- Mutant | -10/Materials Mutant | -10/Mines Scavenger-Mutant | -10/Exiles Scavenger-Mutant | -9/Mines Resources | -11 -10 -10 -10 -9 ----------- Run | Yrd Mat Min Exi Min Matter Collected 555 | 274 57 224 . . Remotely . | . . . . . Salvage Created 597 | 69 100 428 . . Parts 53 | 6 14 33 . . Haulers Intercepted . | . . . . . Recyclers Shooed . | . . . . . Parts Field Recycled . | . . . . . Retrieved Matter . | . . . . . Parts Self-Destructed . | . . . . . Prevented . | . . . . . Kills | -11 -10 -10 -10 -9 ------- Run | Yrd Mat Min Exi Min Combat Hostiles Destroyed 15 | . 1 14 . . Guns 15 | . 1 14 . . Classes Destroyed 7 | 1 4 2 . . Worker 1 | . . 1 . . Builder 1 | . 1 . . . Tunneler 3 | 3 . . . . Operator 1 | . 1 . . . Watcher 1 | . 1 . . . Swarmer 6 | . . 6 . . Grunt 9 | . 1 8 . . Best Kill Streak 6 | 2 1 6 . . Combat Bots Only 6 | . 1 6 . . Max Kills in Single Turn 1 | 1 1 1 . . Gunslinging . | . . . . . Exploded . | . . . . . Melee . | . . . . . Uniques/NPCs Destroyed . | . . . . . Combat | -11 -10 -10 -10 -9 -------- Run | Yrd Mat Min Exi Min Hostile Shots Fired 149 | . 6 104 . 39 Missed 51 | . 1 29 . 21 Damage Taken 1130 | . 57 826 . 247 Core 253 | . 12 156 . 85 Absorbed by Shields . | . . . . . Core Remaining (%) 100 | 100 . . . . Volleys Fired 98 | 5 23 70 . . Largest 2 | 2 2 2 . . Hottest 60 | 60 40 40 . . Shots Fired 168 | 10 46 112 . . Gun 168 | 10 46 112 . . Cannon . | . . . . . Launcher . | . . . . . Special . | . . . . . Kinetic 159 | 5 46 108 . . Thermal 9 | 5 . 4 . . Explosive . | . . . . . Electromagnetic . | . . . . . Robot Hit Streak 8 | 4 3 8 . . Robot Miss Streak 4 | 1 4 2 . . Penetration Max . | . . . . . Secondary Targets 1 | . . 1 . . Max Gunslinging Chain 1 | . . 1 . . Shots Hit Robots 103 | 7 22 74 . . Core Hits 50 | 5 9 36 . . Critical Kills . | . . . . . Critical Parts Destroyed 1 | . 1 . . . Critical Strikes 1 | . 1 . . . Destroy 1 | . 1 . . . Melee Attacks . | . . . . . Impact . | . . . . . Slashing . | . . . . . Piercing . | . . . . . Sneak Attacks . | . . . . . Combat Hostiles . | . . . . . Follow-up Attacks . | . . . . . Damage Inflicted 849 | 69 177 603 . . Guns 849 | 69 177 603 . . Cannons . | . . . . . Explosions . | . . . . . Melee . | . . . . . Ramming . | . . . . . Kinetic 774 | 25 177 572 . . Thermal 75 | 44 . 31 . . Explosive . | . . . . . Electromagnetic . | . . . . . Impact . | . . . . . Slashing . | . . . . . Piercing . | . . . . . Highest Corruption . | . . . . . Average Corruption . | . . . . . Corruption Purged . | . . . . . Corruption Blocked . | . . . . . Overload Shots . | . . . . . Overflow Damage . | . . . . . Projectiles . | . . . . . Explosions . | . . . . . Melee . | . . . . . Knockbacks . | . . . . . Impact . | . . . . . Kinetic . | . . . . . Secondary . | . . . . . Self-Inflicted Damage . | . . . . . Shots . | . . . . . Rammed . | . . . . . Targets Rammed . | . . . . . Kicked . | . . . . . Crushed . | . . . . . Highest Temperature 55 | 20 6 55 . 8 Average Temperature 13 | 15 6 14 . 8 Received Heat Transfer 410 | . 30 360 . 20 Siege Activations . | . . . . . Robots Corrupted . | . . . . . Combat Hostiles . | . . . . . Parts Fried . | . . . . . Impact Corruptions . | . . . . . Robots Melted . | . . . . . Combat Hostiles . | . . . . . Parts Melted 1 | . . 1 . . Heat Transferred 175 | 100 . 75 . . Parts Sabotaged . | . . . . . Parts Stolen . | . . . . . Parts Stripped . | . . . . . Power Chain Reactions . | . . . . . Alert | -11 -10 -10 -10 -9 ------- Run | Yrd Mat Min Exi Min Peak Influence 174 | 15 71 174 . 36 Initial 25 | . 9 25 . . Average 49 | 5 46 57 . 23 Maximum Alert Level . | . . . . . Low Security (%) 100 | 100 100 100 . 100 Level 1 . | . . . . . Level 2 . | . . . . . Level 3 . | . . . . . Level 4 . | . . . . . Level 5 . | . . . . . High Security . | . . . . . Max Security . | . . . . . Squads Dispatched 2 | . 1 1 . . Investigation 1 | . . 1 . . Extermination . | . . . . . Reinforcement 1 | . 1 . . . Assault . | . . . . . Garrison . | . . . . . Intercept . | . . . . . Searches Triggered . | . . . . . Construction Impeded . | . . . . . Haulers Reinforced . | . . . . . Active Scanning Responses . | . . . . . Cargo Convoy Interrupts . | . . . . . Stealth | -11 -10 -10 -10 -9 --------- Run | Yrd Mat Min Exi Min Distress Signals . | . . . . . Communications Jammed . | . . . . . Distress Signals . | . . . . . Times Spotted 54 | . 8 18 . 28 Peak Tracking Total 17 | . 3 6 . 17 Tactical Retreats 7 | . 2 2 . 3 Traps | -11 -10 -10 -10 -9 ------- Run | Yrd Mat Min Exi Min Traps Triggered . | . . . . . Indirectly . | . . . . . Trap Hack Attempts . | . . . . . Triggered . | . . . . . Disarmed . | . . . . . Reprogrammed . | . . . . . Reused . | . . . . . Traps Extracted . | . . . . . Installed . | . . . . . Triggered . | . . . . . Machines | -11 -10 -10 -10 -9 ---------- Run | Yrd Mat Min Exi Min Machines Disabled . | . . . . . Max in Single Turn . | . . . . . Machines Repaired . | . . . . . Machines Dismantled . | . . . . . Machines Sabotaged . | . . . . . Overloaded Fab Kills . | . . . . . Hacking | -11 -10 -10 -10 -9 --------- Run | Yrd Mat Min Exi Min Machines Accessed 4 | . 2 1 1 . Terminals 3 | . 2 1 . . Fabricators . | . . . . . Repair Stations . | . . . . . Recycling Units . | . . . . . Scanalyzers . | . . . . . Garrison Access . | . . . . . Total Hacks 10 | . 7 2 1 . Successful 4 | . 3 . 1 . Failed 6 | . 4 2 . . Catastrophic 1 | . . 1 . . Database Lockouts . | . . . . . Manual 6 | . 5 . 1 . Terminals 9 | . 7 2 . . Fabricators . | . . . . . Repair Stations . | . . . . . Recycling Units . | . . . . . Scanalyzers . | . . . . . Garrison Access . | . . . . . Terminal Hacks 3 | . 2 . 1 . Prototype ID Bank 1 | . 1 . . . Branch Access Points 1 | . 1 . . . Derelict Proto ID Bank 1 | . . . 1 . Fabricator Hacks . | . . . . . Repair Station Hacks . | . . . . . Recycling Unit Hacks . | . . . . . Scanalyzer . | . . . . . Garrison Access Hacks . | . . . . . Unauthorized Hacks 1 | . 1 . . . Terminals 1 | . 1 . . . Operators 1 | . 1 . . . Fabricators . | . . . . . Repair Stations . | . . . . . Recycling Units . | . . . . . Scanalyzers . | . . . . . Garrison Access . | . . . . . Data Cores Recovered . | . . . . . Used . | . . . . . Hacking Detections 2 | . 1 1 . . Full Trace Events 1 | . . 1 . . Feedback Events . | . . . . . Feedback Blocked . | . . . . . Robot Schematics Acquired . | . . . . . Robots Built . | . . . . . Authchips . | . . . . . Time . | . . . . . Total Robot Build Rating . | . . . . . Part Schematics Acquired . | . . . . . Parts Built . | . . . . . Authchips . | . . . . . Time . | . . . . . Total Part Build Rating . | . . . . . Parts Repaired . | . . . . . Time . | . . . . . Parts Recycled . | . . . . . Recycled Matter . | . . . . . Retrieved Matter . | . . . . . Retrieved Components . | . . . . . Parts Scanalyzed . | . . . . . Part Schematics Acquired . | . . . . . Parts Damaged . | . . . . . Bothacking | -11 -10 -10 -10 -9 ------------ Run | Yrd Mat Min Exi Min Used RIF Installer . | . . . . . Robots Hacked . | . . . . . Non-combat . | . . . . . Combat . | . . . . . Robot Hacks Applied . | . . . . . Relay Couplers Released . | . . . . . Fabnet Peak Effective % . | . . . . . Robots Rewired . | . . . . . Allies Hacked . | . . . . . Hacks Repelled . | . . . . . Allies | -11 -10 -10 -10 -9 -------- Run | Yrd Mat Min Exi Min Total Allies 1 | . . 1 . . Largest Group 1 | . . 1 . . Highest-Rated Group 31 | . . 31 . . Highest-Rated Ally 31 | . . 31 . . Total Orders . | . . . . . Ally Attacks 13 | . . 13 . . Total Damage 148 | . . 148 . . Kills 2 | . . 2 . . Allies Corrupted . | . . . . . Allies Melted . | . . . . . Intel | -11 -10 -10 -10 -9 ------- Run | Yrd Mat Min Exi Min Robot Analysis Total . | . . . . . Derelict Logs Recovered 1 | . . 1 . . Drone Launches . | . . . . . Drone Recoveries . | . . . . . Exploration | -11 -10 -10 -10 -9 ------------- Run | Yrd Mat Min Exi Min Turns Passed 2240 | 161 551 1385 81 62 Spaces Moved 1401 | 90 304 631 215 161 Core 16 | 10 . 6 . . Treads 931 | 80 304 547 . . Legs . | . . . . . Wheels 25 | . . 25 . . Hover . | . . . . . Flight 429 | . . 53 215 161 Fastest Speed 37 | 50 160 37 37 37 Average Speed 119 | 147 160 145 37 37 Slowest Speed 160 | 160 160 160 37 40 Overloaded Moves . | . . . . . Propulsion Burnouts . | . . . . . Robots Hopped . | . . . . . Cave-ins Triggered . | . . . . . Exploration Rate (%) 47 | 5 44 80 62 45 Regions Visited 4 Branch Regions 3 Pre-discovered Areas . | . . . . . Known Exits Taken 1 | . 1 . . . Unknown Exits Taken 3 | 1 . 1 1 . Scrap Searched 2 | . . 1 . 1 Spaces Dug . | . . . . . Terrain Destroyed . | . . . . . Melee . | . . . . . Projectile . | . . . . . AOE . | . . . . . Terrain Rammed . | . . . . . Walls Destroyed . | . . . . . Machines Disabled . | . . . . . Actions | -11 -10 -10 -10 -9 --------- Run | Yrd Mat Min Exi Min Total 1817 | 106 332 1002 215 162 Wait 282 | 3 1 278 . . Move 1397 | 89 303 630 214 161 Hop . | . . . . . Pick Up 3 | 1 2 . . . Fast Attach 18 | 6 1 10 1 . Attach 2 | . . 2 . . Detach 5 | . 1 3 . 1 Swap 4 | 1 . 3 . . Drop 8 | 1 1 6 . . Fire 98 | 5 23 70 . . Melee . | . . . . . Ram . | . . . . . Kick . | . . . . . Crush . | . . . . . Escape Stasis . | . . . . . Rewire . | . . . . . Trap . | . . . . . Miscellaneous . | . . . . . Route ------- -11/Scrapyard -10/Materials (discovered 3 exits: [*Mat] / *Min x2) -10/Mines (discovered 3 exits: [*Mat x2] / *Exi) -10/Exiles -9/Mines History --------- Turn | Location | Event 11 | -11/Scrapyard | Discovered new exit (range 16) 162 | -11/Scrapyard | Entered Materials 233 | -10/Materials | Identified exit to Mines 315 | -10/Materials | Build established: Mutant 537 | -10/Materials | Discovered new exit (range 3) 713 | -10/Materials | Entered Mines 760 | -10/Mines | Received a Mining Laser from a helpful Derelict 1234 | -10/Mines | Discovered new exit (range 3) 1362 | -10/Mines | Learned Materials stockpile data 1367 | -10/Mines | Discovered new exit (range 13) 1694 | -10/Mines | A weapon hastily lodged in a ceiling crevice suddenly fell to the ground 1718 | -10/Mines | Excavation squad dispatched 1718 | -10/Mines | A large section of the Mines collapsed 1968 | -10/Mines | Excavation squad dispatched 2047 | -10/Mines | Core integrity fell below 50% 2095 | -10/Mines | Lost 5 parts (1p3n1w) 2096 | -10/Mines | Deemed a non-threat by the Exiles lab entrance 2096 | -10/Mines | Discovered new exit (range 5) 2098 | -10/Mines | Entered Exiles 2108 | -10/Exiles | Met 8R-AWN 2114 | -10/Exiles | Met EX-HEX 2125 | -10/Exiles | Met EX-BIN 2129 | -10/Exiles | Aligned with FarCom system 2130 | -10/Exiles | Given EX-Vault access code 2138 | -10/Exiles | Opened EX-Vault 2140 | -10/Exiles | Found 0b10 Alert Chip 2149 | -10/Exiles | Warned to stay clear of 0b10 Research branches 2162 | -10/Exiles | Met EX-DEC 2175 | -10/Exiles | Discovered new exit (range 12) 2179 | -10/Exiles | Left Exiles lab with 0b10 Alert Chip 2179 | -10/Exiles | Entered Mines 2196 | -9/Mines | Assembled infested the area 2222 | -9/Mines | Core integrity fell below 20% 2241 | -9/Mines | Destroyed by as-51589 with Assembled Blade Last Messages --------------- here and I'll invert your atomic chain! EX-DEC: "Oops, I hope HEX didn't hear that..." EXIT=FOUND LOCATION=UNKNOWN GOAL=ESCAPE Receiving FarCom transmissions... ALERT: Infestation in the mines, dispatching Demolisher response squad. as-51055 sneak attacks. T-07 Excavator suffers critical hit (Destroy). T-07 Excavator destroyed. Flight Unit destroyed. Searching scrap... Found Hvy. EM Pulse Gun. Found Power Shielding. Found Hover Unit. Found Aluminum Leg. Found 30 Matter. T-07 Excavator is excavating. Lgt. Assault Rifle destroyed. Map ----- +----------------------------------------------------+ | ?????????????????????????????????????????????????? | | ?????????????????????????????????????????????????? | | ?????????????????????????????????????????????????? | | ##########???????????###?????????????????????????? | | # ####??###### ###???????????????????????? | | # """ #?? ### ???????????????????? | | # """ ## #?? ???????????????????? | | # """ ## #??# ????????????????????? | | # ## #?## #???????????????????????? | | # ## ### #??????????????????????????? | | # ## #????????????????????????????? | | # ####### ##????????????????????????????? | | ##########?????# #?????????????????????????????? | | ###???????????# ##????????????????????????????? | | ##??????????# ##???????????????????????????? | | ###????????## #???????????????????????????? | | ##????????## #####???????????????????????? | | #?????????## #???????????????????????? | | ##?????????## #???????????????????????? | | ##?????????##### #???????????????????????? | | ##????????????# #???????????????????????? | | %! #????????????# #????????????? ?????????? | | = #????????????# #???????????# #????????? | | ##???????????## ######?????# #????????? | | ##????######### ## ##???? ?????????? | | ##?????# a a a @ ##??# ??????????? | | ##??????# aaa a a a #??C ???????????? | | # #???????#!#### ## #?? #???????????? | | # ##?????##%#??# ##### ##?? ##??????????? | | ##??###[=##?# #???## #### ##?????????? | | #### =#?# #???## ## ##????????? | | ### #???# #????????? | | % #???# #????????? | | ### ######???## # ##????????? | | ###?####?????????## ## ###?????????? | | ## ##?????????????????# ### #???????????? | | ##### #??????????????????# #?## ##???????????? | | ????# #??????????????????# #??####????????????? | | ????## ##??????????????????# ??????????????????? | | ?????###???????????????????####??????????????????? | | ?????????????????????????????????????????????????? | | ?????????????????????????????????????????????????? | | ?????????????????????????????????????????????????? | | ?????????????????????????????????????????????????? | | ?????????????????????????????????????????????????? | | ?????????????????????????????????????????????????? | | ?????????????????????????????????????????????????? | | ?????????????????????????????????????????????????? | | ?????????????????????????????????????????????????? | | ?????????????????????????????????????????????????? | +----------------------------------------------------+ Best States ------------- Heat Dissipation 25 Energy Generation 10 Energy Capacity 250 Matter Stores 300 Matter Capacity 300 Sight Range 16 Terrain Scan Range 16 Terrain Scan Density 10 Evasion (%) 62 Recoil Reduction 2 Item Schematics ----------------- None Robot Schematics ------------------ None Fabricated ------------ Nothing Alien Tech Used ----------------- None Achievements -------------- None Challenges ------------ None Game ------ Seed BraceSigixCompressor Manual? 0 Play Time 00:13:57 Cumulative 90.8 hours Start 2024.08.30 @ 17:41:05 End 2024.08.30 @ 17:53:40 Sessions 1 Manual Loads 0 Difficulty Rogue Special Mode None Game No. 83 Rogue 83 Adventurer 0 Explorer 0 Win Type - Total 0 Types 0/0/0/0/0/0/0/0/0 Lore% 25 Gallery% 49 Achievement% 37 Wizard Run 0 Options --------- Layout 2 ASCII 0 Keyboard 0 Movement Arrows Keybinds 0 Fullscreen 1 Font 16/Terminus Map View 55x47 Zoom Use 0% Tactical HUD 0 Map Filters NONE Filters NONE Steam 1 RUN: e8f83ebb-00ca-40a8-9ffa-d91ad7bebe63